Workbook

Sheet 월별 참여 현황(표준중소형제주)
B2: ㅇ 월별 의무감축용량(MW)
B3: 연 | D3: 2020 | E3: 2021 | F3: 2021 | G3: 2021 | H3: 2021 | I3: 2021 | J3: 2021 | K3: 2021 | L3: 2021 | M3: 2021 | N3: 2021 | O3: 2021
B4: 월 | D4: 12 | E4: 1 | F4: 2 | G4: 3 | H4: 4 | I4: 5 | J4: 6 | K4: 7 | L4: 8 | M4: 9 | N4: 10 | O4: 11
B5: 표 준 | C5: 수도권 | D5: 576.353 | E5: 576.353 | F5: 576.353 | G5: 576.353 | H5: 576.353 | I5: 576.353 | J5: 589.189 | K5: 589.189 | L5: 574.337 | M5: 574.337 | N5: 574.337 | O5: 574.337
C6: 비수도권 | D6: 3200.458 | E6: 3200.458 | F6: 3200.458 | G6: 3200.458 | H6: 3200.458 | I6: 3200.458 | J6: 3342.937 | K6: 3342.937 | L6: 3342.937 | M6: 3342.937 | N6: 3342.937 | O6: 3342.937
B7: 중소형 | C7: 수도권 | D7: 254.587 | E7: 254.587 | F7: 254.587 | G7: 254.587 | H7: 254.587 | I7: 254.587 | J7: 264.526 | K7: 264.526 | L7: 256.49 | M7: 256.49 | N7: 256.49 | O7: 256.49
C8: 비수도권 | D8: 467.946 | E8: 467.946 | F8: 464.343 | G8: 464.343 | H8: 464.343 | I8: 464.343 | J8: 498.673 | K8: 498.673 | L8: 482.45 | M8: 482.45 | N8: 482.45 | O8: 482.45
B9: 제 주 | D9: - | E9: - | F9: - | G9: - | H9: - | I9: - | J9: - | K9: - | L9: - | M9: - | N9: - | O9: -
B10: 합 계 | D10: 4499.344 | E10: 4499.344 | F10: 4495.741 | G10: 4495.741 | H10: 4495.741 | I10: 4495.741 | J10: 4695.325 | K10: 4695.325 | L10: 4656.214 | M10: 4656.214 | N10: 4656.214 | O10: 4656.214
B12: 연 | D12: 2021 | E12: 2022 | F12: 2022 | G12: 2022 | H12: 2022 | I12: 2022 | J12: 2022 | K12: 2022 | L12: 2022 | M12: 2022 | N12: 2022 | O12: 2022
B13: 월 | D13: 12 | E13: 1 | F13: 2 | G13: 3 | H13: 4 | I13: 5 | J13: 6 | K13: 7 | L13: 8 | M13: 9 | N13: 10 | O13: 11
B14: 표 준 | C14: 수도권 | D14: 589.581 | E14: 589.581 | F14: 589.581 | G14: 589.581 | H14: 589.581 | I14: 589.581 | J14: 602.616 | K14: 602.616 | L14: 586.616 | M14: 586.616 | N14: 586.616 | O14: 586.616
C15: 비수도권 | D15: 3232.646 | E15: 3232.646 | F15: 3232.646 | G15: 3232.646 | H15: 3232.646 | I15: 3232.646 | J15: 3551.56 | K15: 3551.56 | L15: 3551.56 | M15: 3551.56 | N15: 3551.56 | O15: 3551.56
B16: 중소형 | C16: 수도권 | D16: 261.369 | E16: 261.369 | F16: 261.369 | G16: 261.369 | H16: 261.369 | I16: 261.369 | J16: 269.825 | K16: 269.825 | L16: 269.046 | M16: 269.046 | N16: 269.046 | O16: 269.046
C17: 비수도권 | D17: 469.338 | E17: 469.338 | F17: 466.159 | G17: 466.159 | H17: 466.159 | I17: 466.159 | J17: 499.537 | K17: 499.537 | L17: 489.666 | M17: 489.666 | N17: 489.666 | O17: 489.666
B18: 제 주 | D18: - | E18: - | F18: - | G18: - | H18: - | I18: - | J18: - | K18: - | L18: - | M18: - | N18: - | O18: -
B19: 합 계 | D19: 4552.934 | E19: 4552.934 | F19: 4549.755 | G19: 4549.755 | H19: 4549.755 | I19: 4549.755 | J19: 4923.538 | K19: 4923.538 | L19: 4896.888 | M19: 4896.888 | N19: 4896.888 | O19: 4896.888
B21: 연 | D21: 2022 | E21: 2023 | F21: 2023 | G21: 2023 | H21: 2023 | I21: 2023 | J21: 2023 | K21: 2023 | L21: 2023 | M21: 2023 | N21: 2023 | O21: 2023
B22: 월 | D22: 12 | E22: 1 | F22: 2 | G22: 3 | H22: 4 | I22: 5 | J22: 6 | K22: 7 | L22: 8 | M22: 9 | N22: 10 | O22: 11
B23: 표 준 | C23: 수도권 | D23: 573.48 | E23: 573.48 | F23: 573.48 | G23: 573.48 | H23: 573.48 | I23: 573.48 | J23: 586.88 | K23: 586.88 | L23: 586.88 | M23: 586.88 | N23: 586.88
C24: 비수도권 | D24: 3375.338 | E24: 3375.338 | F24: 3375.338 | G24: 3375.338 | H24: 3375.338 | I24: 3375.338 | J24: 3665.968 | K24: 3665.968 | L24: 3663.304 | M24: 3663.304 | N24: 3663.304
B25: 중소형 | C25: 수도권 | D25: 184.615 | E25: 184.615 | F25: 179.997 | G25: 179.997 | H25: 179.997 | I25: 179.997 | J25: 250.083 | K25: 250.083 | L25: 247.254 | M25: 247.254 | N25: 247.254
C26: 비수도권 | D26: 250.822 | E26: 250.822 | F26: 250.822 | G26: 250.822 | H26: 250.822 | I26: 250.822 | J26: 372.14 | K26: 372.14 | L26: 365.607 | M26: 365.607 | N26: 365.607
B27: 제 주 | D27: 37.217 | E27: 37.217 | F27: 37.217 | G27: 37.217 | H27: 37.217 | I27: 37.217 | J27: 37.217 | K27: 37.217 | L27: 32.384 | M27: 32.384 | N27: 32.384
B28: 합 계 | D28: 4421.472 | E28: 4421.472 | F28: 4416.854 | G28: 4416.854 | H28: 4416.854 | I28: 4416.854 | J28: 4912.288 | K28: 4912.288 | L28: 4895.429 | M28: 4895.429 | N28: 4895.429
B30: ㅇ 월별 수요자원 수(개)
B31: 연 | D31: 2020 | E31: 2021 | F31: 2021 | G31: 2021 | H31: 2021 | I31: 2021 | J31: 2021 | K31: 2021 | L31: 2021 | M31: 2021 | N31: 2021 | O31: 2021
B32: 월 | D32: 12 | E32: 1 | F32: 2 | G32: 3 | H32: 4 | I32: 5 | J32: 6 | K32: 7 | L32: 8 | M32: 9 | N32: 10 | O32: 11
B33: 표 준 | C33: 수도권 | D33: 11 | E33: 11 | F33: 11 | G33: 11 | H33: 11 | I33: 11 | J33: 12 | K33: 12 | L33: 12 | M33: 12 | N33: 12 | O33: 12
C34: 비수도권 | D34: 19 | E34: 19 | F34: 19 | G34: 19 | H34: 19 | I34: 19 | J34: 22 | K34: 22 | L34: 22 | M34: 22 | N34: 22 | O34: 22
B35: 중소형 | C35: 수도권 | D35: 20 | E35: 20 | F35: 20 | G35: 20 | H35: 20 | I35: 20 | J35: 23 | K35: 23 | L35: 22 | M35: 22 | N35: 22 | O35: 22
C36: 비수도권 | D36: 35 | E36: 35 | F36: 35 | G36: 35 | H36: 35 | I36: 35 | J36: 40 | K36: 40 | L36: 39 | M36: 39 | N36: 39 | O36: 39
B37: 제 주 | D37: - | E37: - | F37: - | G37: - | H37: - | I37: - | J37: - | K37: - | L37: - | M37: - | N37: - | O37: -
B38: 합 계 | D38: 85 | E38: 85 | F38: 85 | G38: 85 | H38: 85 | I38: 85 | J38: 97 | K38: 97 | L38: 95 | M38: 95 | N38: 95 | O38: 95
B40: 연 | D40: 2021 | E40: 2022 | F40: 2022 | G40: 2022 | H40: 2022 | I40: 2022 | J40: 2022 | K40: 2022 | L40: 2022 | M40: 2022 | N40: 2022 | O40: 2022
B41: 월 | D41: 12 | E41: 1 | F41: 2 | G41: 3 | H41: 4 | I41: 5 | J41: 6 | K41: 7 | L41: 8 | M41: 9 | N41: 10 | O41: 11
B42: 표 준 | C42: 수도권 | D42: 12 | E42: 12 | F42: 12 | G42: 12 | H42: 12 | I42: 12 | J42: 13 | K42: 13 | L42: 12 | M42: 12 | N42: 12 | O42: 12
C43: 비수도권 | D43: 20 | E43: 20 | F43: 20 | G43: 20 | H43: 20 | I43: 20 | J43: 24 | K43: 24 | L43: 24 | M43: 24 | N43: 24 | O43: 24
B44: 중소형 | C44: 수도권 | D44: 21 | E44: 21 | F44: 21 | G44: 21 | H44: 21 | I44: 21 | J44: 23 | K44: 23 | L44: 23 | M44: 23 | N44: 23 | O44: 23
C45: 비수도권 | D45: 32 | E45: 32 | F45: 32 | G45: 32 | H45: 32 | I45: 32 | J45: 38 | K45: 38 | L45: 37 | M45: 37 | N45: 37 | O45: 37
B46: 제 주 | D46: - | E46: - | F46: - | G46: - | H46: - | I46: - | J46: - | K46: - | L46: - | M46: - | N46: - | O46: -
B47: 합 계 | D47: 85 | E47: 85 | F47: 85 | G47: 85 | H47: 85 | I47: 85 | J47: 98 | K47: 98 | L47: 96 | M47: 96 | N47: 96 | O47: 96
B49: 연 | D49: 2022 | E49: 2023 | F49: 2023 | G49: 2023 | H49: 2023 | I49: 2023 | J49: 2023 | K49: 2023 | L49: 2023 | M49: 2023 | N49: 2023 | O49: 2023
B50: 월 | D50: 12 | E50: 1 | F50: 2 | G50: 3 | H50: 4 | I50: 5 | J50: 6 | K50: 7 | L50: 8 | M50: 9 | N50: 10 | O50: 11
B51: 표 준 | C51: 수도권 | D51: 11 | E51: 11 | F51: 11 | G51: 11 | H51: 11 | I51: 11 | J51: 12 | K51: 12 | L51: 12 | M51: 12 | N51: 12
C52: 비수도권 | D52: 21 | E52: 21 | F52: 21 | G52: 21 | H52: 21 | I52: 21 | J52: 26 | K52: 26 | L52: 26 | M52: 26 | N52: 26
B53: 중소형 | C53: 수도권 | D53: 17 | E53: 17 | F53: 17 | G53: 17 | H53: 17 | I53: 17 | J53: 26 | K53: 26 | L53: 26 | M53: 26 | N53: 26
C54: 비수도권 | D54: 18 | E54: 18 | F54: 18 | G54: 18 | H54: 18 | I54: 18 | J54: 32 | K54: 32 | L54: 32 | M54: 32 | N54: 32
B55: 제 주 | D55: 5 | E55: 5 | F55: 5 | G55: 5 | H55: 5 | I55: 5 | J55: 5 | K55: 5 | L55: 4 | M55: 4 | N55: 4
B56: 합 계 | D56: 72 | E56: 72 | F56: 72 | G56: 72 | H56: 72 | I56: 72 | J56: 101 | K56: 101 | L56: 100 | M56: 100 | N56: 100
B58: ㅇ 월별 참여고객 수(개)
B59: 연 | D59: 2020 | E59: 2021 | F59: 2021 | G59: 2021 | H59: 2021 | I59: 2021 | J59: 2021 | K59: 2021 | L59: 2021 | M59: 2021 | N59: 2021 | O59: 2021
B60: 월 | D60: 12 | E60: 1 | F60: 2 | G60: 3 | H60: 4 | I60: 5 | J60: 6 | K60: 7 | L60: 8 | M60: 9 | N60: 10 | O60: 11
B61: 표 준 | C61: 수도권 | D61: 526 | E61: 526 | F61: 526 | G61: 532 | H61: 532 | I61: 532 | J61: 543 | K61: 543 | L61: 543 | M61: 542 | N61: 542 | O61: 542
C62: 비수도권 | D62: 1238 | E62: 1238 | F62: 1238 | G62: 1267 | H62: 1267 | I62: 1267 | J62: 1362 | K62: 1362 | L62: 1362 | M62: 1357 | N62: 1357 | O62: 1357
B63: 중소형 | C63: 수도권 | D63: 942 | E63: 942 | F63: 942 | G63: 940 | H63: 940 | I63: 940 | J63: 978 | K63: 978 | L63: 952 | M63: 949 | N63: 949 | O63: 949
C64: 비수도권 | D64: 2194 | E64: 2194 | F64: 2194 | G64: 2186 | H64: 2186 | I64: 2186 | J64: 2307 | K64: 2307 | L64: 2297 | M64: 2297 | N64: 2297 | O64: 2297
B65: 제 주 | D65: - | E65: - | F65: - | G65: - | H65: - | I65: - | J65: - | K65: - | L65: - | M65: - | N65: - | O65: -
B66: 합 계 | D66: 4900 | E66: 4900 | F66: 4900 | G66: 4925 | H66: 4925 | I66: 4925 | J66: 5190 | K66: 5190 | L66: 5154 | M66: 5145 | N66: 5145 | O66: 5145
B68: 연 | D68: 2021 | E68: 2022 | F68: 2022 | G68: 2022 | H68: 2022 | I68: 2022 | J68: 2022 | K68: 2022 | L68: 2022 | M68: 2022 | N68: 2022 | O68: 2022
B69: 월 | D69: 12 | E69: 1 | F69: 2 | G69: 3 | H69: 4 | I69: 5 | J69: 6 | K69: 7 | L69: 8 | M69: 9 | N69: 10 | O69: 11
B70: 표 준 | C70: 수도권 | D70: 517 | E70: 517 | F70: 517 | G70: 524 | H70: 524 | I70: 524 | J70: 550 | K70: 550 | L70: 524 | M70: 520 | N70: 520 | O70: 520
C71: 비수도권 | D71: 1272 | E71: 1272 | F71: 1272 | G71: 1291 | H71: 1291 | I71: 1291 | J71: 1329 | K71: 1329 | L71: 1329 | M71: 1322 | N71: 1322 | O71: 1322
B72: 중소형 | C72: 수도권 | D72: 969 | E72: 969 | F72: 969 | G72: 963 | H72: 963 | I72: 963 | J72: 995 | K72: 995 | L72: 995 | M72: 1001 | N72: 1001 | O72: 1001
C73: 비수도권 | D73: 2276 | E73: 2276 | F73: 2276 | G73: 2243 | H73: 2243 | I73: 2243 | J73: 2438 | K73: 2438 | L73: 2422 | M73: 2396 | N73: 2396 | O73: 2396
B74: 제 주 | D74: - | E74: - | F74: - | G74: - | H74: - | I74: - | J74: - | K74: - | L74: - | M74: - | N74: - | O74: -
B75: 합 계 | D75: 5034 | E75: 5034 | F75: 5034 | G75: 5021 | H75: 5021 | I75: 5021 | J75: 5312 | K75: 5312 | L75: 5270 | M75: 5239 | N75: 5239 | O75: 5239
B77: 연 | D77: 2022 | E77: 2023 | F77: 2023 | G77: 2023 | H77: 2023 | I77: 2023 | J77: 2023 | K77: 2023 | L77: 2023 | M77: 2023 | N77: 2023 | O77: 2023
B78: 월 | D78: 12 | E78: 1 | F78: 2 | G78: 3 | H78: 4 | I78: 5 | J78: 6 | K78: 7 | L78: 8 | M78: 9 | N78: 10 | O78: 11
B79: 표 준 | C79: 수도권 | D79: 504 | E79: 504 | F79: 504 | G79: 503 | H79: 503 | I79: 503 | J79: 544 | K79: 544 | L79: 544 | M79: 544 | N79: 544
C80: 비수도권 | D80: 1306 | E80: 1306 | F80: 1306 | G80: 1405 | H80: 1405 | I80: 1405 | J80: 1476 | K80: 1476 | L80: 1476 | M80: 1476 | N80: 1476
B81: 중소형 | C81: 수도권 | D81: 620 | E81: 620 | F81: 620 | G81: 618 | H81: 618 | I81: 618 | J81: 1020 | K81: 1020 | L81: 1020 | M81: 1020 | N81: 1020
C82: 비수도권 | D82: 1204 | E82: 1204 | F82: 1204 | G82: 1157 | H82: 1157 | I82: 1157 | J82: 1886 | K82: 1886 | L82: 1885 | M82: 1885 | N82: 1885
B83: 제 주 | D83: 128 | E83: 128 | F83: 128 | G83: 130 | H83: 130 | I83: 130 | J83: 133 | K83: 133 | L83: 121 | M83: 121 | N83: 121
B84: 합 계 | D84: 3762 | E84: 3762 | F84: 3762 | G84: 3813 | H84: 3813 | I84: 3813 | J84: 5059 | K84: 5059 | L84: 5046 | M84: 5046 | N84: 5046

Sheet 월별 참여 현황(국민주파수플러스)
B2: ㅇ 국민DR 참여 현황
B3: 연 | C3: 2020 | D3: 2021 | E3: 2021 | F3: 2021 | G3: 2021 | H3: 2021 | I3: 2021 | J3: 2021 | K3: 2021 | L3: 2021 | M3: 2021 | N3: 2021
B4: 월 | C4: 12 | D4: 1 | E4: 2 | F4: 3 | G4: 4 | H4: 5 | I4: 6 | J4: 7 | K4: 8 | L4: 9 | M4: 10 | N4: 11
B5: 수요자원 수(개) | C5: 7 | D5: 7 | E5: 7 | F5: 11 | G5: 11 | H5: 11 | I5: 11 | J5: 11 | K5: 11 | L5: 22 | M5: 22 | N5: 22
B6: 참여고객 수(개) | C6: 883 | D6: 883 | E6: 883 | F6: 2179 | G6: 2179 | H6: 2179 | I6: 2566 | J6: 2566 | K6: 2566 | L6: 3124 | M6: 3124 | N6: 3124
B8: 연 | C8: 2021 | D8: 2022 | E8: 2022 | F8: 2022 | G8: 2022 | H8: 2022 | I8: 2022 | J8: 2022 | K8: 2022 | L8: 2022 | M8: 2022 | N8: 2022
B9: 월 | C9: 12 | D9: 1 | E9: 2 | F9: 3 | G9: 4 | H9: 5 | I9: 6 | J9: 7 | K9: 8 | L9: 9 | M9: 10 | N9: 11
B10: 수요자원 수(개) | C10: 18 | D10: 18 | E10: 19 | F10: 20 | G10: 21 | H10: 21 | I10: 21 | J10: 23 | K10: 23 | L10: 27 | M10: 28 | N10: 29
B11: 참여고객 수(개) | C11: 3979 | D11: 3979 | E11: 4505 | F11: 4727 | G11: 4898 | H11: 6785 | I11: 6823 | J11: 6959 | K11: 7355 | L11: 8698 | M11: 9502 | N11: 11456
B13: 연 | C13: 2022 | D13: 2023 | E13: 2023 | F13: 2023 | G13: 2023 | H13: 2023 | I13: 2023 | J13: 2023 | K13: 2023 | L13: 2023 | M13: 2023 | N13: 2023
B14: 월 | C14: 12 | D14: 1 | E14: 2 | F14: 3 | G14: 4 | H14: 5 | I14: 6 | J14: 7 | K14: 8 | L14: 9 | M14: 10 | N14: 11
B15: 수요자원 수(개) | C15: 30 | D15: 35 | E15: 35 | F15: 37 | G15: 38 | H15: 38 | I15: 38 | J15: 38 | K15: 49 | L15: 52 | M15: 54
B16: 참여고객 수(개) | C16: 12711 | D16: 13982 | E16: 14457 | F16: 14834 | G16: 15033 | H16: 15199 | I16: 15524 | J16: 17317 | K16: 18136 | L16: 19602 | M16: 20976
B18: ㅇ 주파수DR 참여 현황
B19: 연 | C19: 2020 | D19: 2021 | E19: 2021 | F19: 2021 | G19: 2021 | H19: 2021 | I19: 2021 | J19: 2021 | K19: 2021 | L19: 2021 | M19: 2021 | N19: 2021
B20: 월 | C20: 12 | D20: 1 | E20: 2 | F20: 3 | G20: 4 | H20: 5 | I20: 6 | J20: 7 | K20: 8 | L20: 9 | M20: 10 | N20: 11
B21: 감축예상용량(MW) | C21: 741.872 | D21: 741.872 | E21: 741.872 | F21: 741.872 | G21: 741.872 | H21: 741.872 | I21: 741.872 | J21: 741.872 | K21: 741.872 | L21: 741.872 | M21: 741.872 | N21: 741.872
B22: 수요자원 수(개) | C22: 35 | D22: 35 | E22: 35 | F22: 35 | G22: 35 | H22: 35 | I22: 35 | J22: 35 | K22: 35 | L22: 35 | M22: 35 | N22: 35
B23: 참여고객 수(개) | C23: 35 | D23: 35 | E23: 35 | F23: 35 | G23: 35 | H23: 35 | I23: 35 | J23: 35 | K23: 35 | L23: 35 | M23: 35 | N23: 35
B25: 연 | C25: 2021 | D25: 2022 | E25: 2022 | F25: 2022 | G25: 2022 | H25: 2022 | I25: 2022 | J25: 2022 | K25: 2022 | L25: 2022 | M25: 2022 | N25: 2022
B26: 월 | C26: 12 | D26: 1 | E26: 2 | F26: 3 | G26: 4 | H26: 5 | I26: 6 | J26: 7 | K26: 8 | L26: 9 | M26: 10 | N26: 11
B27: 감축예상용량(MW) | C27: 709.735 | D27: 709.735 | E27: 709.735 | F27: 709.735 | G27: 709.735 | H27: 709.735 | I27: 709.735 | J27: 709.735 | K27: 709.735 | L27: 709.735 | M27: 709.735 | N27: 709.735
B28: 수요자원 수(개) | C28: 34 | D28: 34 | E28: 34 | F28: 34 | G28: 34 | H28: 34 | I28: 34 | J28: 34 | K28: 34 | L28: 34 | M28: 34 | N28: 34
B29: 참여고객 수(개) | C29: 34 | D29: 34 | E29: 34 | F29: 34 | G29: 34 | H29: 34 | I29: 34 | J29: 34 | K29: 34 | L29: 34 | M29: 34 | N29: 34
B31: 연 | C31: 2022 | D31: 2023 | E31: 2023 | F31: 2023 | G31: 2023 | H31: 2023 | I31: 2023 | J31: 2023 | K31: 2023 | L31: 2023 | M31: 2023 | N31: 2023
B32: 월 | C32: 12 | D32: 1 | E32: 2 | F32: 3 | G32: 4 | H32: 5 | I32: 6 | J32: 7 | K32: 8 | L32: 9 | M32: 10 | N32: 11
B33: 1단계 감축예상용량(MW) | C33: 689.564 | D33: 689.564 | E33: 689.564 | F33: 714.386 | G33: 714.386 | H33: 714.386 | I33: 742.181 | J33: 742.181 | K33: 742.181 | L33: 742.181 | M33: 742.181
B34: 1단계 수요자원 수(개) | C34: 43 | D34: 43 | E34: 43 | F34: 50 | G34: 50 | H34: 50 | I34: 51 | J34: 51 | K34: 51 | L34: 51 | M34: 51
B35: 1단계 참여고객 수(개) | C35: 44 | D35: 44 | E35: 44 | F35: 52 | G35: 52 | H35: 52 | I35: 56 | J35: 56 | K35: 56 | L35: 56 | M35: 56
B36: 2단계 감축예상용량(MW) | F36: 33.753 | G36: 33.753 | H36: 33.753 | I36: 108.122 | J36: 108.122 | K36: 108.122 | L36: 108.122 | M36: 108.122
B37: 2단계 수요자원 수(개) | F37: 1 | G37: 1 | H37: 1 | I37: 2 | J37: 2 | K37: 2 | L37: 2 | M37: 2
B38: 2단계 참여고객 수(개) | F38: 2 | G38: 2 | H38: 2 | I38: 4 | J38: 4 | K38: 4 | L38: 4 | M38: 4
B40: ㅇ 플러스DR 참여 현황
B41: 연 | C41: 2020 | D41: 2021 | E41: 2021 | F41: 2021 | G41: 2021 | H41: 2021 | I41: 2021 | J41: 2021 | K41: 2021 | L41: 2021 | M41: 2021 | N41: 2021
B42: 월 | C42: 12 | D42: 1 | E42: 2 | F42: 3 | G42: 4 | H42: 5 | I42: 6 | J42: 7 | K42: 8 | L42: 9 | M42: 10 | N42: 11
B43: 수요자원 수(개) | F43: 13 | G43: 13 | H43: 13 | I43: 16 | J43: 16 | K43: 16 | L43: 509 | M43: 509 | N43: 509
B44: 참여고객 수(개) | F44: 13 | G44: 13 | H44: 13 | I44: 123 | J44: 123 | K44: 123 | L44: 644 | M44: 644 | N44: 644
B46: 연 | C46: 2021 | D46: 2022 | E46: 2022 | F46: 2022 | G46: 2022 | H46: 2022 | I46: 2022 | J46: 2022 | K46: 2022 | L46: 2022 | M46: 2022 | N46: 2022
B47: 월 | C47: 12 | D47: 1 | E47: 2 | F47: 3 | G47: 4 | H47: 5 | I47: 6 | J47: 7 | K47: 8 | L47: 9 | M47: 10 | N47: 11
B48: 수요자원 수(개) | C48: 514 | D48: 514 | E48: 514 | F48: 555 | G48: 555 | H48: 555 | I48: 602 | J48: 602 | K48: 602 | L48: 814 | M48: 814 | N48: 814
B49: 참여고객 수(개) | C49: 965 | D49: 965 | E49: 965 | F49: 1009 | G49: 1009 | H49: 1009 | I49: 1058 | J49: 1058 | K49: 1058 | L49: 1274 | M49: 1274 | N49: 1274
B51: 연 | C51: 2022 | D51: 2023 | E51: 2023 | F51: 2023 | G51: 2023 | H51: 2023 | I51: 2023 | J51: 2023 | K51: 2023 | L51: 2023 | M51: 2023 | N51: 2023
B52: 월 | C52: 12 | D52: 1 | E52: 2 | F52: 3 | G52: 4 | H52: 5 | I52: 6 | J52: 7 | K52: 8 | L52: 9 | M52: 10 | N52: 11
B53: 수요자원 수(개) | C53: 838 | D53: 838 | E53: 838 | F53: 17 | G53: 17 | H53: 17 | I53: 18 | J53: 18 | K53: 18 | L53: 18 | M53: 18
B54: 참여고객 수(개) | C54: 1279 | D54: 1279 | E54: 1279 | F54: 1289 | G54: 1289 | H54: 1289 | I54: 1289 | J54: 1289 | K54: 1289 | L54: 1289 | M54: 1289

Sheet 월별 가격지표 현황
B2: ㅇ 월별 순편익가격(NBTP) 및 계통한계가격(SMP)(원/kWh)
B3: 연 | C3: 2021 | D3: 2021 | E3: 2021 | F3: 2021 | G3: 2021 | H3: 2021 | I3: 2021 | J3: 2021 | K3: 2021 | L3: 2021 | M3: 2021 | N3: 2021
B4: 월 | C4: 1 | D4: 2 | E4: 3 | F4: 4 | G4: 5 | H4: 6 | I4: 7 | J4: 8 | K4: 9 | L4: 10 | M4: 11 | N4: 12
B5: 육지NBTP | C5: 71.04 | D5: 77.11 | E5: 85.29 | F5: 74.51 | G5: 80.56 | H5: 84.34 | I5: 89.06 | J5: 97.11 | K5: 103.77 | L5: 108.35 | M5: 134.15 | N5: 148.01
B6: 제주NBTP | C6: - | D6: - | E6: - | F6: - | G6: - | H6: - | I6: - | J6: - | K6: - | L6: - | M6: - | N6: -
B7: 육지SMP | C7: 70.47 | D7: 75.25 | E7: 83.78 | F7: 75.97 | G7: 78.93 | H7: 82.72 | I7: 87.04 | J7: 93.41 | K7: 98.21 | L7: 107.53 | M7: 126.83 | N7: 142.46
B8: 제주SMP | C8: 87.75 | D8: 92.84 | E8: 124.79 | F8: 111 | G8: 95.39 | H8: 121.49 | I8: 133.68 | J8: 153.23 | K8: 149.31 | L8: 130.14 | M8: 149.77 | N8: 175.72
B10: 연 | C10: 2022 | D10: 2022 | E10: 2022 | F10: 2022 | G10: 2022 | H10: 2022 | I10: 2022 | J10: 2022 | K10: 2022 | L10: 2022 | M10: 2022 | N10: 2022
B11: 월 | C11: 1 | D11: 2 | E11: 3 | F11: 4 | G11: 5 | H11: 6 | I11: 7 | J11: 8 | K11: 9 | L11: 10 | M11: 11 | N11: 12
B12: 육지NBTP | C12: 166.08 | D12: 216.78 | E12: 197.17 | F12: 210.88 | G12: 141.91 | H12: 134.96 | I12: 161.98 | J12: 217.71 | K12: 252.06 | L12: 270.62 | M12: 263.69 | N12: 279.9
B13: 제주NBTP | C13: - | D13: - | E13: - | F13: - | G13: - | H13: - | I13: - | J13: - | K13: - | L13: - | M13: - | N13: 371.96
B14: 육지SMP | C14: 153.82 | D14: 196.93 | E14: 192.34 | F14: 201.58 | G14: 139.06 | H14: 128.84 | I14: 150.6 | J14: 196.02 | K14: 233.37 | L14: 251.61 | M14: 242.17 | N14: 267.55
B15: 제주SMP | C15: 206.86 | D15: 229.85 | E15: 229.05 | F15: 250.33 | G15: 263.73 | H15: 214.32 | I15: 261.31 | J15: 340.91 | K15: 238.44 | L15: 255.03 | M15: 243.97 | N15: 275.15
B17: 연 | C17: 2023 | D17: 2023 | E17: 2023 | F17: 2023 | G17: 2023 | H17: 2023 | I17: 2023 | J17: 2023 | K17: 2023 | L17: 2023 | M17: 2023 | N17: 2023
B18: 월 | C18: 1 | D18: 2 | E18: 3 | F18: 4 | G18: 5 | H18: 6 | I18: 7 | J18: 8 | K18: 9 | L18: 10 | M18: 11 | N18: 12
B19: 육지NBTP | C19: 262.73 | D19: 266.58 | E19: 246.42 | F19: 178.87 | G19: 164.7 | H19: 159.33 | I19: 166.19 | J19: 156.76
B20: 제주NBTP | C20: 346.7 | D20: 317.22 | E20: 300.47 | F20: 207.89 | G20: 200.49 | H20: 193.91 | I20: 203.36 | J20: 192.23
B21: 육지SMP | C21: 240.73 | D21: 253.48 | E21: 215.87 | F21: 164.87 | G21: 143.64 | H21: 147.12 | I21: 153.39 | J21: 146.91
B22: 제주SMP | C22: 247.55 | D22: 260.27 | E22: 218.2 | F22: 163.87 | G22: 143.07 | H22: 147.71 | I22: 164.72 | J22: 173.17
B24: ㅇ 월별 기본정산금 단가
B25: 연 | C25: 2021 | D25: 2021 | E25: 2021 | F25: 2021 | G25: 2021 | H25: 2021 | I25: 2021 | J25: 2021 | K25: 2021 | L25: 2021 | M25: 2021 | N25: 2021
B26: 월 | C26: 1 | D26: 2 | E26: 3 | F26: 4 | G26: 5 | H26: 6 | I26: 7 | J26: 8 | K26: 9 | L26: 10 | M26: 11 | N26: 12
B27: 표준DR(원/kW-월) | C27: 4750.8 | D27: 2863.62 | E27: 853.6 | F27: 502.92 | G27: 421.8 | H27: 997.04 | I27: 3862.98 | J27: 4810.26 | K27: 1502.14 | L27: 463.79 | M27: 1671.34 | N27: 5132.68
B28: 중소형DR(원/kW-월) | C28: 5807.6 | D28: 3500.82 | E28: 1043.24 | F28: 613.8 | G28: 514.9 | H28: 1218.58 | I28: 4725.16 | J28: 5883.15 | K28: 1837.68 | L28: 566.39 | M28: 2044.9 | N28: 6277.85
B29: 국민DR(원/kWh) | C29: 56347.39 | D29: 56347.39 | E29: 56347.39 | F29: 56347.39 | G29: 56347.39 | H29: 56347.39 | I29: 57315.32 | J29: 57315.32 | K29: 57315.32 | L29: 57335.15 | M29: 57335.15 | N29: 59644.35
B30: 주파수DR(원/kW-10m) | C30: 33772.5 | D30: 33772.5 | E30: 33772.5 | F30: 33772.5 | G30: 33772.5 | H30: 33772.5 | I30: 33676.11 | J30: 33676.11 | K30: 33676.11 | L30: 33698.07 | M30: 33698.07 | N30: 31108.95
B32: 연 | C32: 2022 | D32: 2022 | E32: 2022 | F32: 2022 | G32: 2022 | H32: 2022 | I32: 2022 | J32: 2022 | K32: 2022 | L32: 2022 | M32: 2022 | N32: 2022
B33: 월 | C33: 1 | D33: 2 | E33: 3 | F33: 4 | G33: 5 | H33: 6 | I33: 7 | J33: 8 | K33: 9 | L33: 10 | M33: 11 | N33: 12
B34: 표준/중소형DR(원/kW-월) | C34: 4599 | D34: 2723.4 | E34: 748.02 | F34: 473.76 | G34: 459.9 | H34: 941.6 | I34: 4355.4 | J34: 5541.58 | K34: 1900.2 | L34: 487.92 | M34: 1246.08 | N34: 4343.9
B35: 제주DR(원/kW-월) | C35: - | D35: - | E35: - | F35: - | G35: - | H35: - | I35: - | J35: - | K35: - | L35: - | M35: - | N35: 4834.5
B36: 국민DR(육지)(원/kWh) | C36: 58632.58 | D36: 58632.58 | E36: 58632.58 | F36: 58632.58 | G36: 58632.58 | H36: 58632.58 | I36: 63502.27 | J36: 63502.27 | K36: 63502.27 | L36: 63502.27 | M36: 63502.27 | N36: 63115.51
B37: 국민DR(제주)(원/kWh) | C37: - | D37: - | E37: - | F37: - | G37: - | H37: - | I37: - | J37: - | K37: - | L37: - | M37: - | N37: 64575.87
B38: 주파수DR(원/kW-10m) | C38: 31108.95 | D38: 31108.95 | E38: 31108.95 | F38: 31108.95 | G38: 31108.95 | H38: 31108.95 | I38: 32485.95 | J38: 32485.95 | K38: 32485.95 | L38: 32485.95 | M38: 32485.95 | N38: 33211.35
B40: 연 | C40: 2023 | D40: 2023 | E40: 2023 | F40: 2023 | G40: 2023 | H40: 2023 | I40: 2023 | J40: 2023 | K40: 2023 | L40: 2023 | M40: 2023 | N40: 2023
B41: 월 | C41: 1 | D41: 2 | E41: 3 | F41: 4 | G41: 5 | H41: 6 | I41: 7 | J41: 8 | K41: 9 | L41: 10 | M41: 11 | N41: 12
B42: 표준/중소형DR(원/kW-월) | C42: 2943 | D42: 2475.8 | E42: 1212.86 | F42: 385.8 | G42: 445.83 | H42: 1657.74 | I42: 3714.9 | J42: 4017.64
B43: 제주DR(원/kW-월) | C43: 3583.4 | D43: 2902.8 | E43: 1299.1 | F43: 479.6 | G43: 549.78 | H43: 1968.33 | I43: 4521.93 | J43: 4955.28
B44: 국민DR(육지)(원/kWh) | C44: 66055.85 | D44: 66055.85 | E44: 66055.85 | F44: 66055.85 | G44: 65993.27 | H44: 65993.27 | I44: 67659.4 | J44: 67659.4
B45: 국민DR(제주)(원/kWh) | C45: 70847.34 | D45: 70847.34 | E45: 70847.34 | F45: 70847.34 | G45: 70776.41 | H45: 70776.41 | I45: 76312.16 | J45: 76312.16
B46: 주파수DR(원/kW-10m) | C46: 33211.35 | D46: 33211.35 | E46: 33211.35 | F46: 33211.35 | G46: 33211.35 | H46: 33211.35 | I46: 35924.04 | J46: 35924.04

Sheet 월별 감축 및 증대 실적
B2: ㅇ 신뢰성DR 감축실적
B3: 차수 | C3: 연 | D3: 월 | E3: 일 | F3: 감축요청량(MWh) | G3: 감축이행량(MWh) | H3: 이행률(%) | I3: 비 고
B4: 7 | C4: 2020 | D4: 12 | E4: 9 | F4: 4499.344 | G4: 5024.906 | H4: =G4/F4*100 -> 111.6808584 | I4: 감축시험
B5: 7 | C5: 2020 | D5: 12 | E5: 22 | F5: 95.762 | G5: 102.341 | H5: =G5/F5*100 -> 106.8701573 | I5: 감축시험
B6: 7 | C6: 2021 | D6: 6 | E6: 8 | F6: 4695.325 | G6: 5331.635 | H6: 113.5519905 | I6: 감축시험
B7: 7 | C7: 2021 | D7: 6 | E7: 22 | F7: 451.2 | G7: 418.405 | H7: 92.73160461 | I7: 감축시험
B8: 8 | C8: 2021 | D8: 12 | E8: 7 | F8: 4552.934 | G8: 5048.567 | H8: 110.8860133 | I8: 감축시험
B9: 8 | C9: 2021 | D9: 12 | E9: 20 | F9: 33.602 | G9: 30.917 | H9: 92.0094042 | I9: 감축시험
B10: 8 | C10: 2021 | D10: 12 | E10: 21 | F10: 422.03 | G10: 456.187 | H10: 108.0935005 | I10: 감축시험
B11: 8 | C11: 2022 | D11: 6 | E11: 8 | F11: 4923.538 | G11: 5748.986 | H11: 116.7653423 | I11: 감축시험
B12: 8 | C12: 2022 | D12: 6 | E12: 22 | F12: 359.243 | G12: 348.405 | H12: 96.98310058 | I12: 감축시험
B13: 9 | C13: 2022 | D13: 12 | E13: 2 | F13: 4421.472 | G13: 4974.637 | H13: 112.5108787 | I13: 감축시험
B14: 9 | C14: 2022 | D14: 12 | E14: 19 | F14: 221.728 | G14: 246.422 | H14: 111.1370688 | I14: 감축시험
B15: 9 | C15: 2023 | D15: 6 | E15: 7 | F15: 2493.101 | G15: 2879.568 | H15: =G15/F15*100 -> 115.5014578 | I15: 감축시험
B16: 9 | C16: 2023 | D16: 6 | E16: 8 | F16: 2419.187 | G16: 2804.538 | H16: 115.9289464 | I16: 감축시험
B17: 9 | C17: 2023 | D17: 6 | E17: 20 | F17: 470.239 | G17: 474.279 | H17: 100.8591376 | I17: 감축시험
B20: ㅇ 자발적DR 감축실적
B21: 차수 | C21: 7 | D21: 7 | E21: 7 | F21: 7 | G21: 7 | H21: 7 | I21: 7 | J21: 7 | K21: 7 | L21: 7 | M21: 7 | N21: 7 | O21: 7
B22: 연 | C22: 2020 | D22: 2021 | E22: 2021 | F22: 2021 | G22: 2021 | H22: 2021 | I22: 2021 | J22: 2021 | K22: 2021 | L22: 2021 | M22: 2021 | N22: 2021 | O22: 합 계
B23: 월 | C23: 12 | D23: 1 | E23: 2 | F23: 3 | G23: 4 | H23: 5 | I23: 6 | J23: 7 | K23: 8 | L23: 9 | M23: 10 | N23: 11
B24: 입찰량(MWh) | C24: 82604 | D24: 40950 | E24: 44624 | F24: 55559 | G24: 43829 | H24: 55307 | I24: 65664 | J24: 64552 | K24: 102946 | L24: 69340 | M24: 66018 | N24: 54854 | O24: =SUM(C24:N24) -> 746247
B25: 낙찰량(MWh) | C25: 34971.713 | D25: 15913.058 | E25: 12225.572 | F25: 12938.3 | G25: 27391 | H25: 31050 | I25: 33940 | J25: 34889.7 | K25: 27622 | L25: 33419 | M25: 39140 | N25: 11046 | O25: =SUM(C25:N25) -> 314546.343
B26: 감축량(MWh) | C26: 53220.054 | D26: 22477.291 | E26: 19306.68 | F26: 21333.312 | G26: 47427.513 | H26: 51359.423 | I26: 52682.112 | J26: 55036.646 | K26: 40413.181 | L26: 53375.541 | M26: 59501.409 | N26: 18100.87 | O26: 494234.032
B27: 이행률(%) | C27: =C26/C25*100 -> 152.1802893 | D27: =D26/D25*100 -> 141.2506069 | E27: 157.9204638 | F27: 164.8849694 | G27: 173.1499872 | H27: 165.4087697 | I27: 155.2213082 | J27: 157.7446811 | K27: 146.3079466 | L27: 159.7161525 | M27: 152.0219954 | N27: 163.868097 | O27: 157.1259825
B29: 차수 | C29: 8 | D29: 8 | E29: 8 | F29: 8 | G29: 8 | H29: 8 | I29: 8 | J29: 8 | K29: 8 | L29: 8 | M29: 8 | N29: 8 | O29: 8
B30: 연 | C30: 2021 | D30: 2022 | E30: 2022 | F30: 2022 | G30: 2022 | H30: 2022 | I30: 2022 | J30: 2022 | K30: 2022 | L30: 2022 | M30: 2022 | N30: 2022 | O30: 합 계
B31: 월 | C31: 12 | D31: 1 | E31: 2 | F31: 3 | G31: 4 | H31: 5 | I31: 6 | J31: 7 | K31: 8 | L31: 9 | M31: 10 | N31: 11
B32: 입찰량(MWh) | C32: 73411 | D32: 41737 | E32: 66762 | F32: 58690 | G32: 50563 | H32: 76949 | I32: 84205 | J32: 82595 | K32: 139798 | L32: 74604.7 | M32: 74325.8 | N32: 70575.4 | O32: =SUM(C32:N32) -> 894215.9
B33: 낙찰량(MWh) | C33: 18870 | D33: 6402.4 | E33: 11270 | F33: 12535 | G33: 5436 | H33: 26970 | I33: 21185 | J33: 8582 | K33: 42789 | L33: 9290.708 | M33: 8003.157 | N33: 4989.405 | O33: =SUM(C33:N33) -> 176322.67
B34: 감축량(MWh) | C34: 29282.24 | D34: 9215.756 | E34: 16857.351 | F34: 22307.524 | G34: 9641.667 | H34: 43134.995 | I34: 33865.103 | J34: 13157.735 | K34: 66370.474 | L34: 13768.437 | M34: 11848.902 | N34: 8313.881 | O34: 277764.065
B35: 이행률(%) | C35: =C34/C33*100 -> 155.1788023 | D35: =D34/D33*100 -> 143.9422092 | E35: =E34/E33*100 -> 149.577205 | F35: =F34/F33*100 -> 177.9618987 | G35: =G34/G33*100 -> 177.3669426 | H35: =H34/H33*100 -> 159.9369485 | I35: =I34/I33*100 -> 159.8541562 | J35: =J34/J33*100 -> 153.3178164 | K35: =K34/K33*100 -> 155.1110659 | L35: =L34/L33*100 -> 148.195778 | M35: =M34/M33*100 -> 148.0528496 | N35: =N34/N33*100 -> 166.6307105 | O35: 157.5316804
B37: 차수 | C37: 9 | D37: 9 | E37: 9 | F37: 9 | G37: 9 | H37: 9 | I37: 9 | J37: 9 | K37: 9 | L37: 9 | M37: 9 | N37: 9 | O37: 9
B38: 연 | C38: 2022 | D38: 2023 | E38: 2023 | F38: 2023 | G38: 2023 | H38: 2023 | I38: 2023 | J38: 2023 | K38: 2023 | L38: 2023 | M38: 2023 | N38: 2023 | O38: 합 계
B39: 월 | C39: 12 | D39: 1 | E39: 2 | F39: 3 | G39: 4 | H39: 5 | I39: 6 | J39: 7 | K39: 8 | L39: 9 | M39: 10 | N39: 11
B40: 입찰량(MWh) | C40: 81310.9 | D40: 68484.2 | E40: 64740.1 | F40: 80889.7 | G40: 79244.7 | H40: 81343.2 | I40: 104981.4 | J40: 110246.3 | K40: 122059.1 | O40: =SUM(C40:N40) -> 793299.6
B41: 낙찰량(MWh) | C41: 29013.756 | D41: 23218.698 | E41: 21683.2 | F41: 10638.8 | G41: 4572 | H41: 5171.94 | I41: 9686.558 | J41: 14988.017 | K41: 24432.95 | O41: =SUM(C41:N41) -> 143405.919
B42: 감축량(MWh) | C42: 43360.948 | D42: 34433.662 | E42: 32172.011 | F42: 17679.377 | G42: 7757.247 | H42: 8709.178 | I42: 16532.455 | J42: 21663.011 | K42: 36476.164 | O42: 218784.053
B43: 이행률(%) | C43: =C42/C41*100 -> 149.4496197 | D43: 148.3014336 | E43: 148.3729846 | F43: 166.1783002 | G43: 169.6685696 | H43: 168.3928661 | I43: 170.6741961 | J43: 144.535538 | K43: 149.2908715 | O43: =O42/O41*100 -> 152.5627774
B45: ㅇ 국민DR 감축실적
B46: 연 | C46: 2020 | D46: 2021 | E46: 2021 | F46: 2021 | G46: 2021 | H46: 2021 | I46: 2021 | J46: 2021 | K46: 2021 | L46: 2021 | M46: 2021 | N46: 2021 | O46: 합 계
B47: 월 | C47: 12 | D47: 1 | E47: 2 | F47: 3 | G47: 4 | H47: 5 | I47: 6 | J47: 7 | K47: 8 | L47: 9 | M47: 10 | N47: 11
B48: 감축량(kWh) | C48: 290 | D48: 153 | E48: 99 | F48: 174 | G48: 104 | H48: 87 | I48: 26 | J48: 11 | K48: 114 | L48: 55 | M48: 75 | N48: 109 | O48: =SUM(C48:N48) -> 1297
B50: 연 | C50: =C46+1 -> 2021 | D50: =D46+1 -> 2022 | E50: 2022 | F50: 2022 | G50: 2022 | H50: 2022 | I50: 2022 | J50: 2022 | K50: 2022 | L50: 2022 | M50: 2022 | N50: 2022 | O50: 합 계
B51: 월 | C51: 12 | D51: 1 | E51: 2 | F51: 3 | G51: 4 | H51: 5 | I51: 6 | J51: 7 | K51: 8 | L51: 9 | M51: 10 | N51: 11
B52: 감축량(kWh) | C52: 523 | D52: 361 | E52: 230 | F52: 680 | G52: 989 | H52: 431 | I52: 31 | J52: 410 | K52: 589 | L52: 488 | M52: 144 | N52: 1171 | O52: =SUM(C52:N52) -> 6047
B54: 연 | C54: =C50+1 -> 2022 | D54: =D50+1 -> 2023 | E54: 2023 | F54: 2023 | G54: 2023 | H54: 2023 | I54: 2023 | J54: 2023 | K54: 2023 | L54: 2023 | M54: 2023 | N54: 2023 | O54: 합 계
B55: 월 | C55: 12 | D55: 1 | E55: 2 | F55: 3 | G55: 4 | H55: 5 | I55: 6 | J55: 7 | K55: 8 | L55: 9 | M55: 10 | N55: 11
B56: 감축량(kWh) | C56: 953 | D56: 3376 | E56: 3745 | F56: 6199 | G56: 2868 | H56: 1152 | I56: 349 | J56: 437 | K56: 2064 | O56: =SUM(C56:N56) -> 21143
B58: ㅇ 주파수DR 감축실적
B59: 연 | C59: 2020 | D59: 2021 | E59: 2021 | F59: 2021 | G59: 2021 | H59: 2021 | I59: 2021 | J59: 2021 | K59: 2021 | L59: 2021 | M59: 2021 | N59: 2021 | O59: 합 계
B60: 월 | C60: 12 | D60: 1 | E60: 2 | F60: 3 | G60: 4 | H60: 5 | I60: 6 | J60: 7 | K60: 8 | L60: 9 | M60: 10 | N60: 11
B61: 감축량(MWh) | C61: 0 | D61: 0 | E61: 0 | F61: 138.306 | G61: 118.703 | H61: 314.988 | I61: 0 | J61: 0 | K61: 0 | L61: 0 | M61: 0 | N61: 0 | O61: =SUM(C61:N61) -> 571.997
B63: 연 | C63: =C59+1 -> 2021 | D63: 2022 | E63: 2022 | F63: 2022 | G63: 2022 | H63: 2022 | I63: 2022 | J63: 2022 | K63: 2022 | L63: 2022 | M63: 2022 | N63: 2022 | O63: 합 계
B64: 월 | C64: 12 | D64: 1 | E64: 2 | F64: 3 | G64: 4 | H64: 5 | I64: 6 | J64: 7 | K64: 8 | L64: 9 | M64: 10 | N64: 11
B65: 감축량(MWh) | C65: 0 | D65: 0 | E65: 0 | F65: 0 | G65: 258.222 | H65: 0 | I65: 0 | J65: 0 | K65: 0 | L65: 139.656 | M65: 0 | N65: 0 | O65: =SUM(C65:N65) -> 397.878
B67: 연 | C67: =C63+1 -> 2022 | D67: =D63+1 -> 2023 | E67: 2023 | F67: 2023 | G67: 2023 | H67: 2023 | I67: 2023 | J67: 2023 | K67: 2023 | L67: 2023 | M67: 2023 | N67: 2023 | O67: 합 계
B68: 월 | C68: 12 | D68: 1 | E68: 2 | F68: 3 | G68: 4 | H68: 5 | I68: 6 | J68: 7 | K68: 8 | L68: 9 | M68: 10 | N68: 11
B69: 감축량(MWh) | C69: 0 | D69: 0 | E69: 0 | F69: 0 | G69: 0 | H69: 0 | I69: 0 | J69: 0 | K69: - | O69: =SUM(C69:N69) -> 0
B71: ㅇ 플러스DR 증대실적
B72: 연 | C72: 2020 | D72: 2021 | E72: 2021 | F72: 2021 | G72: 2021 | H72: 2021 | I72: 2021 | J72: 2021 | K72: 2021 | L72: 2021 | M72: 2021 | N72: 2021 | O72: 합 계
B73: 월 | C73: 12 | D73: 1 | E73: 2 | F73: 3 | G73: 4 | H73: 5 | I73: 6 | J73: 7 | K73: 8 | L73: 9 | M73: 10 | N73: 11
B74: 증대량(kWh) | G74: 3215 | H74: 15796 | I74: 0 | J74: 0 | K74: 0 | L74: 0 | M74: 467 | N74: 0 | O74: =SUM(C74:N74) -> 19478
B76: 연 | C76: 2021 | D76: 2022 | E76: 2022 | F76: 2022 | G76: 2022 | H76: 2022 | I76: 2022 | J76: 2022 | K76: 2022 | L76: 2022 | M76: 2022 | N76: 2022 | O76: 합 계
B77: 월 | C77: 12 | D77: 1 | E77: 2 | F77: 3 | G77: 4 | H77: 5 | I77: 6 | J77: 7 | K77: 8 | L77: 9 | M77: 10 | N77: 11
B78: 증대량(kWh) | C78: 0 | D78: 0 | E78: 0 | F78: 4873 | G78: 32507 | H78: 47857 | I78: 0 | J78: 0 | K78: 0 | L78: 0 | M78: 39242 | N78: 27821 | O78: =SUM(C78:N78) -> 152300
B80: 연 | C80: =C76+1 -> 2022 | D80: 2023 | E80: 2023 | F80: 2023 | G80: 2023 | H80: 2023 | I80: 2023 | J80: 2023 | K80: 2023 | L80: 2023 | M80: 2023 | N80: 2023 | O80: 합 계
B81: 월 | C81: 12 | D81: 1 | E81: 2 | F81: 3 | G81: 4 | H81: 5 | I81: 6 | J81: 7 | K81: 8 | L81: 9 | M81: 10 | N81: 11
B82: 하루전시장 증대량(kWh) | C82: 0 | D82: 6398 | E82: 25584 | F82: 30917 | G82: 54088 | H82: 25517 | I82: 0 | J82: 0 | K82: 0 | O82: =SUM(C82:N82) -> 142504
B83: 실시간시장 증대량(kWh) | C83: 0 | D83: 5906 | E83: 34932 | F83: 112481 | G83: 73706 | H83: 66446 | I83: 9188 | J83: 0 | K83: 0 | O83: =SUM(C83:N83) -> 302659

Sheet 월별 정산금 지급 실적
B2: ㅇ 정산금 지급 실적(백만원)
B3: 차수 | C3: 7 | D3: 7 | E3: 7 | F3: 7 | G3: 7 | H3: 7 | I3: 7 | J3: 7 | K3: 7 | L3: 7 | M3: 7 | N3: 7 | O3: 7
B4: 연 | C4: 2020 | D4: 2021 | E4: 2021 | F4: 2021 | G4: 2021 | H4: 2021 | I4: 2021 | J4: 2021 | K4: 2021 | L4: 2021 | M4: 2021 | N4: 2021 | O4: 합계
B5: 월 | C5: 12 | D5: 1 | E5: 2 | F5: 3 | G5: 4 | H5: 5 | I5: 6 | J5: 7 | K5: 8 | L5: 9 | M5: 10 | N5: 11
B6: 실적정산금 | C6: 2784.355463 | D6: 1142.43547 | E6: 941.515301 | F6: 1095.922435 | G6: 2081.810155 | H6: 2498.335704 | I6: 3347.990187 | J6: 3186.965553 | K6: 2641.880696 | L6: 3505.934769 | M6: 4375.483989 | N6: 1483.145393 | O6: =SUM(C6:N6) -> 29085.77512
B7: 기본정산금 | C7: 19870.43902 | D7: 22121.27028 | E7: 25662.72903 | F7: 3973.902404 | G7: 2340.713022 | H7: 15846.03114 | I7: 4809.96723 | J7: 18647.41548 | K7: 54852.2748 | L7: 7242.229227 | M7: 2235.320741 | N7: 19226.29421 | O7: =SUM(C7:N7) -> 196828.5866
B8: 합 계 | C8: 22654.79449 | D8: 23263.70575 | E8: 26604.24433 | F8: 5069.824839 | G8: 4422.523177 | H8: 18344.36685 | I8: 8157.957417 | J8: 21834.38104 | K8: 57494.15549 | L8: 10748.164 | M8: 6610.80473 | N8: 20709.4396 | O8: =SUM(O6:O7) -> 225914.3617
B10: 차수 | C10: 8 | D10: 8 | E10: 8 | F10: 8 | G10: 8 | H10: 8 | I10: 8 | J10: 8 | K10: 8 | L10: 8 | M10: 8 | N10: 8 | O10: 8
B11: 연 | C11: 2021 | D11: 2022 | E11: 2022 | F11: 2022 | G11: 2022 | H11: 2022 | I11: 2022 | J11: 2022 | K11: 2022 | L11: 2022 | M11: 2022 | N11: 2022 | O11: 합계
B12: 월 | C12: 12 | D12: 1 | E12: 2 | F12: 3 | G12: 4 | H12: 5 | I12: 6 | J12: 7 | K12: 8 | L12: 9 | M12: 10 | N12: 11
B13: 실적정산금 | C13: 3617.452594 | D13: 1072.613271 | E13: 2451.64611 | F13: 2489.953869 | G13: 1155.672204 | H13: 3851.597247 | I13: 3629.638124 | J13: 1400.173372 | K13: 9399.752738 | L13: 2397.523784 | M13: 2203.438137 | N13: 1362.309827 | O13: =SUM(C13:N13) -> 35031.77128
B14: 기본정산금 | C14: 24180.57479 | D14: 20924.32324 | E14: 20043.79576 | F14: 3403.307735 | G14: 2155.491933 | H14: 12695.76373 | I14: 4544.973612 | J14: 21344.48762 | K14: 60532.67372 | L14: 9305.066576 | M14: 2389.289592 | N14: 25228.30327 | O14: =SUM(C14:N14) -> 206748.0516
B15: 합 계 | C15: 27798.02738 | D15: 21996.93652 | E15: 22495.44187 | F15: 5893.261604 | G15: 3311.164137 | H15: 16547.36097 | I15: 8174.611736 | J15: 22744.661 | K15: 69932.42646 | L15: 11702.59036 | M15: 4592.727729 | N15: 26590.6131 | O15: =SUM(O13:O14) -> 241779.8229
B17: 차수 | C17: 9 | D17: 9 | E17: 9 | F17: 9 | G17: 9 | H17: 9 | I17: 9 | J17: 9 | K17: 9 | L17: 9 | M17: 9 | N17: 9 | O17: 9
B18: 연 | C18: 2022 | D18: 2023 | E18: 2023 | F18: 2023 | G18: 2023 | H18: 2023 | I18: 2023 | J18: 2023 | K18: 2023 | L18: 2023 | M18: 2023 | N18: 2023 | O18: 합계
B19: 월 | C19: 12 | D19: 1 | E19: 2 | F19: 3 | G19: 4 | H19: 5 | I19: 6 | J19: 7 | K19: 8 | L19: 9 | M19: 10 | N19: 11
B20: 실적정산금 | C20: 9782.968658 | D20: 6283.224091 | E20: 5821.060162 | F20: 2493.914277 | G20: 870.72086 | H20: 881.602435 | I20: 2480.037771 | J20: 2534.383305 | K20: 4066.928528 | O20: =SUM(C20:N20) -> 35214.84009
B21: 기본정산금 | C21: 19078.11342 | D21: 13022.63509 | E21: 29490.07146 | F21: 5360.235137 | G21: 1707.513229 | H21: 11023.37978 | I21: 7975.807468 | J21: 18214.83258 | K21: 54776.83066 | O21: =SUM(C21:N21) -> 160649.4188
B22: 합 계 | C22: 28861.08208 | D22: 19305.85918 | E22: 35311.13162 | F22: 7854.149414 | G22: 2578.234089 | H22: 11904.98222 | I22: 10455.84524 | J22: 20749.10234 | K22: 58843.75918 | O22: =SUM(O20:O21) -> 195864.2589
B24: ㅇ 실적정산금 지급 실적(백만원)
B25: 차수 | C25: 7 | D25: 7 | E25: 7 | F25: 7 | G25: 7 | H25: 7 | I25: 7 | J25: 7 | K25: 7 | L25: 7 | M25: 7 | N25: 7 | O25: 7
B26: 연 | C26: 2020 | D26: 2021 | E26: 2021 | F26: 2021 | G26: 2021 | H26: 2021 | I26: 2021 | J26: 2021 | K26: 2021 | L26: 2021 | M26: 2021 | N26: 2021 | O26: 합계
B27: 월 | C27: 12 | D27: 1 | E27: 2 | F27: 3 | G27: 4 | H27: 5 | I27: 6 | J27: 7 | K27: 8 | L27: 9 | M27: 10 | N27: 11
B28: 신뢰성DR 정산금 | C28: 377.977399 | D28: 0 | E28: 0 | F28: 0 | G28: 0 | H28: 0 | I28: 474.428774 | J28: 0 | K28: 0 | L28: 0 | M28: 0 | N28: 0 | O28: =SUM(C28:N28) -> 852.406173
B29: 자발적DR 정산금 | C29: 2422.965358 | D29: 1158.627653 | E29: 954.065642 | F29: 1105.433972 | G29: 2100.581126 | H29: 2521.589198 | I29: 2900.247883 | J29: 3209.246981 | K29: 2676.908295 | L29: 3530.528151 | M29: 4392.481254 | N29: 1492.145185 | O29: =SUM(C29:N29) -> 28464.8207
B30: 위약금 | C30: 16.587294 | D30: 16.192183 | E30: 12.550341 | F30: 9.511537 | G30: 18.770971 | H30: 23.253494 | I30: 26.68647 | J30: 22.281428 | K30: 35.027599 | L30: 24.593382 | M30: 16.997265 | N30: 8.999792 | O30: 231.451756
B31: 합 계 | C31: =SUM(C28:C29)-C30 -> 2784.355463 | D31: =SUM(D28:D29)-D30 -> 1142.43547 | E31: 941.515301 | F31: 1095.922435 | G31: 2081.810155 | H31: 2498.335704 | I31: 3347.990187 | J31: 3186.965553 | K31: 2641.880696 | L31: 3505.934769 | M31: 4375.483989 | N31: 1483.145393 | O31: 29085.77512
B33: 차수 | C33: 8 | D33: 8 | E33: 8 | F33: 8 | G33: 8 | H33: 8 | I33: 8 | J33: 8 | K33: 8 | L33: 8 | M33: 8 | N33: 8 | O33: 8
B34: 연 | C34: 2021 | D34: 2022 | E34: 2022 | F34: 2022 | G34: 2022 | H34: 2022 | I34: 2022 | J34: 2022 | K34: 2022 | L34: 2022 | M34: 2022 | N34: 2022 | O34: 합계
B35: 월 | C35: 12 | D35: 1 | E35: 2 | F35: 3 | G35: 4 | H35: 5 | I35: 6 | J35: 7 | K35: 8 | L35: 9 | M35: 10 | N35: 11
B36: 신뢰성DR 정산금 | C36: 796.32736 | D36: 0 | E36: 0 | F36: 0 | G36: 0 | H36: 0 | I36: 774.105219 | J36: 0 | K36: 0 | L36: 0 | M36: 0 | N36: 0 | O36: =SUM(C36:N36) -> 1570.432579
B37: 자발적DR 정산금 | C37: 2835.207834 | D37: 1084.55356 | E37: 2456.793384 | F37: 2502.508436 | G37: 1158.468953 | H37: 3870.480626 | I37: 2876.543882 | J37: 1401.361775 | K37: 9440.378368 | L37: 2413.724882 | M37: 2229.439103 | N37: 1370.425871 | O37: =SUM(C37:N37) -> 33639.88667
B38: 위약금 | C38: 14.0826 | D38: 11.940289 | E38: 5.147274 | F38: 12.554567 | G38: 2.796749 | H38: 18.883379 | I38: 21.010977 | J38: 1.188403 | K38: 40.62563 | L38: 16.201098 | M38: 26.000966 | N38: 8.116044 | O38: 178.547976
B39: 합 계 | C39: =SUM(C36:C37)-C38 -> 3617.452594 | D39: =SUM(D36:D37)-D38 -> 1072.613271 | E39: =SUM(E36:E37)-E38 -> 2451.64611 | F39: =SUM(F36:F37)-F38 -> 2489.953869 | G39: =SUM(G36:G37)-G38 -> 1155.672204 | H39: =SUM(H36:H37)-H38 -> 3851.597247 | I39: =SUM(I36:I37)-I38 -> 3629.638124 | J39: =SUM(J36:J37)-J38 -> 1400.173372 | K39: =SUM(K36:K37)-K38 -> 9399.752738 | L39: =SUM(L36:L37)-L38 -> 2397.523784 | M39: =SUM(M36:M37)-M38 -> 2203.438137 | N39: =SUM(N36:N37)-N38 -> 1362.309827 | O39: =SUM(O36:O37)-O38 -> 35031.77128
B41: 차수 | C41: 9 | D41: 9 | E41: 9 | F41: 9 | G41: 9 | H41: 9 | I41: 9 | J41: 9 | K41: 9 | L41: 9 | M41: 9 | N41: 9 | O41: 9
B42: 연 | C42: 2022 | D42: 2023 | E42: 2023 | F42: 2023 | G42: 2023 | H42: 2023 | I42: 2023 | J42: 2023 | K42: 2023 | L42: 2023 | M42: 2023 | N42: 2023 | O42: 합계
B43: 월 | C43: 12 | D43: 1 | E43: 2 | F43: 3 | G43: 4 | H43: 5 | I43: 6 | J43: 7 | K43: 8 | L43: 9 | M43: 10 | N43: 11
B44: 신뢰성DR 정산금 | C44: 1522.064798 | D44: 0 | E44: 0 | F44: 0 | G44: 0 | H44: 0 | I44: 914.26698 | J44: 0 | K44: 0 | O44: =SUM(C44:N44) -> 2436.331778
B45: 자발적DR 정산금 | C45: 8322.932966 | D45: 6320.839568 | E45: 5858.222656 | F45: 2516.574908 | G45: 872.104618 | H45: 885.537599 | I45: 1574.572164 | J45: 2563.090701 | K45: 4080.182076 | O45: =SUM(C45:N45) -> 32994.05726
B46: 위약금 | C46: 62.029106 | D46: 37.615477 | E46: 37.162494 | F46: 22.660631 | G46: 1.383758 | H46: 3.935164 | I46: 8.801373 | J46: 28.707396 | K46: 13.253548 | O46: 215.548947
B47: 합 계 | C47: =SUM(C44:C45)-C46 -> 9782.968658 | D47: =SUM(D44:D45)-D46 -> 6283.224091 | E47: =SUM(E44:E45)-E46 -> 5821.060162 | F47: =SUM(F44:F45)-F46 -> 2493.914277 | G47: =SUM(G44:G45)-G46 -> 870.72086 | H47: =SUM(H44:H45)-H46 -> 881.602435 | I47: =SUM(I44:I45)-I46 -> 2480.037771 | J47: =SUM(J44:J45)-J46 -> 2534.383305 | K47: 4066.928528 | O47: =SUM(O44:O45)-O46 -> 35214.84009
B49: ㅇ 기본정산금 지급 실적(백만원)
B50: 차수 | C50: 7 | D50: 7 | E50: 7 | F50: 7 | G50: 7 | H50: 7 | I50: 7 | J50: 7 | K50: 7 | L50: 7 | M50: 7 | N50: 7 | O50: 7
B51: 연 | C51: 2020 | D51: 2021 | E51: 2021 | F51: 2021 | G51: 2021 | H51: 2021 | I51: 2021 | J51: 2021 | K51: 2021 | L51: 2021 | M51: 2021 | N51: 2021 | O51: 합계
B52: 월 | C52: 12 | D52: 1 | E52: 2 | F52: 3 | G52: 4 | H52: 5 | I52: 6 | J52: 7 | K52: 8 | L52: 9 | M52: 10 | N52: 11
B53: 고정기본정산금 | C53: 19926.43598 | D53: 22121.27028 | E53: 13332.19603 | F53: 3973.902404 | G53: 2340.713022 | H53: 1963.235942 | I53: 4850.505947 | J53: 18647.41548 | K53: 23190.4013 | L53: 7242.229227 | M53: 2235.320741 | N53: 8058.155137 | O53: =SUM(C53:N53) -> 127881.7815
B54: 차등기본정산금 | C54: 0 | D54: 0 | E54: 12330.53299 | F54: 0 | G54: 0 | H54: 13882.7952 | I54: 0 | J54: 0 | K54: 31661.87349 | L54: 0 | M54: 0 | N54: 11168.13907 | O54: =SUM(C54:N54) -> 69043.34075
B55: 위약금 | C55: 55.996952 | D55: 0 | E55: 0 | F55: 0 | G55: 0 | H55: 0 | I55: 40.538717 | J55: 0 | K55: 0 | L55: 0 | M55: 0 | N55: 0 | O55: 96.535669
B56: 합 계 | C56: =SUM(C53:C54)-C55 -> 19870.43902 | D56: =SUM(D53:D54)-D55 -> 22121.27028 | E56: =SUM(E53:E54)-E55 -> 25662.72902 | F56: =SUM(F53:F54)-F55 -> 3973.902404 | G56: =SUM(G53:G54)-G55 -> 2340.713022 | H56: =SUM(H53:H54)-H55 -> 15846.03114 | I56: =SUM(I53:I54)-I55 -> 4809.96723 | J56: =SUM(J53:J54)-J55 -> 18647.41548 | K56: =SUM(K53:K54)-K55 -> 54852.2748 | L56: =SUM(L53:L54)-L55 -> 7242.229227 | M56: =SUM(M53:M54)-M55 -> 2235.320741 | N56: =SUM(N53:N54)-N55 -> 19226.29421 | O56: =SUM(O53:O54)-O55 -> 196828.5866
B58: 차수 | C58: 8 | D58: 8 | E58: 8 | F58: 8 | G58: 8 | H58: 8 | I58: 8 | J58: 8 | K58: 8 | L58: 8 | M58: 8 | N58: 8 | O58: 8
B59: 연 | C59: 2021 | D59: 2022 | E59: 2022 | F59: 2022 | G59: 2022 | H59: 2022 | I59: 2022 | J59: 2022 | K59: 2022 | L59: 2022 | M59: 2022 | N59: 2022 | O59: 합계
B60: 월 | C60: 12 | D60: 1 | E60: 2 | F60: 3 | G60: 4 | H60: 5 | I60: 6 | J60: 7 | K60: 8 | L60: 9 | M60: 10 | N60: 11
B61: 고정기본정산금 | C61: 24205.53702 | D61: 20924.32324 | E61: 12390.80277 | F61: 3403.307735 | G61: 2155.491933 | H61: 2092.432326 | I61: 4636.003382 | J61: 21344.48762 | K61: 27136.4966 | L61: 9305.066576 | M61: 2389.289592 | N61: 6101.9142 | O61: =SUM(C61:N61) -> 136085.153
B62: 차등기본정산금 | C62: 0 | D62: 0 | E62: 7652.99299 | F62: 0 | G62: 0 | H62: 10603.3314 | I62: 0 | J62: 0 | K62: 33396.17711 | L62: 0 | M62: 0 | N62: 19126.38907 | O62: =SUM(C62:N62) -> 70778.89058
B63: 위약금 | C63: 24.962233 | D63: 0 | E63: 0 | F63: 0 | G63: 0 | H63: 0 | I63: 91.02977 | J63: 0 | K63: 0 | L63: 0 | M63: 0 | N63: 0 | O63: 115.992003
B64: 합 계 | C64: =SUM(C61:C62)-C63 -> 24180.57479 | D64: =SUM(D61:D62)-D63 -> 20924.32324 | E64: =SUM(E61:E62)-E63 -> 20043.79576 | F64: =SUM(F61:F62)-F63 -> 3403.307735 | G64: =SUM(G61:G62)-G63 -> 2155.491933 | H64: =SUM(H61:H62)-H63 -> 12695.76373 | I64: =SUM(I61:I62)-I63 -> 4544.973612 | J64: =SUM(J61:J62)-J63 -> 21344.48762 | K64: =SUM(K61:K62)-K63 -> 60532.67372 | L64: =SUM(L61:L62)-L63 -> 9305.066576 | M64: =SUM(M61:M62)-M63 -> 2389.289592 | N64: =SUM(N61:N62)-N63 -> 25228.30327 | O64: =SUM(O61:O62)-O63 -> 206748.0516
B66: 차수 | C66: 9 | D66: 9 | E66: 9 | F66: 9 | G66: 9 | H66: 9 | I66: 9 | J66: 9 | K66: 9 | L66: 9 | M66: 9 | N66: 9 | O66: 9
B67: 연 | C67: 2022 | D67: 2023 | E67: 2023 | F67: 2023 | G67: 2023 | H67: 2023 | I67: 2023 | J67: 2023 | K67: 2023 | L67: 2023 | M67: 2023 | N67: 2023 | O67: 합계
B68: 월 | C68: 12 | D68: 1 | E68: 2 | F68: 3 | G68: 4 | H68: 5 | I68: 6 | J68: 7 | K68: 8 | L68: 9 | M68: 10 | N68: 11
B69: 고정기본정산금 | C69: 19224.69088 | D69: 13022.63509 | E69: 10951.13879 | F69: 5360.235137 | G69: 1707.513229 | H69: 1973.03473 | I69: 8154.85554 | J69: 18215.33214 | K69: 19698.4359 | O69: =SUM(C69:N69) -> 98307.87145
B70: 차등기본정산금 | C70: 0 | D70: 0 | E70: 18538.93267 | F70: 0 | G70: 0 | H70: 9050.345053 | I70: 0 | J70: 0 | K70: 35078.39475 | O70: =SUM(C70:N70) -> 62667.67247
B71: 위약금 | C71: 146.577459 | D71: 0 | E71: 0 | F71: 0 | G71: 0 | H71: 0 | I71: 179.048072 | J71: 0.499566 | K71: 0 | O71: 326.125097
B72: 합 계 | C72: =SUM(C69:C70)-C71 -> 19078.11342 | D72: =SUM(D69:D70)-D71 -> 13022.63509 | E72: =SUM(E69:E70)-E71 -> 29490.07146 | F72: =SUM(F69:F70)-F71 -> 5360.235137 | G72: =SUM(G69:G70)-G71 -> 1707.513229 | H72: =SUM(H69:H70)-H71 -> 11023.37978 | I72: =SUM(I69:I70)-I71 -> 7975.807468 | J72: =SUM(J69:J70)-J71 -> 18214.83258 | K72: 54776.83066 | O72: =SUM(O69:O70)-O71 -> 160649.4188
B74: ㅇ 국민DR 정산금
B75: 연 | C75: 2020 | D75: 2021 | E75: 2021 | F75: 2021 | G75: 2021 | H75: 2021 | I75: 2021 | J75: 2021 | K75: 2021 | L75: 2021 | M75: 2021 | N75: 2021 | O75: 합 계
B76: 월 | C76: 12 | D76: 1 | E76: 2 | F76: 3 | G76: 4 | H76: 5 | I76: 6 | J76: 7 | K76: 8 | L76: 9 | M76: 10 | N76: 11
B77: 정산금(천원) | C77: 366.197 | D77: 190.289 | E77: 123.196 | F77: 226.768 | G77: 129.466 | H77: 108.66 | I77: 33.036 | J77: 16.737 | K77: 147.848 | L77: 72.512 | M77: 99.645 | N77: 149.629 | O77: =SUM(C77:N77) -> 1663.983
B79: 연 | C79: =C75+1 -> 2021 | D79: =D75+1 -> 2022 | E79: 2022 | F79: 2022 | G79: 2022 | H79: 2022 | I79: 2022 | J79: 2022 | K79: 2022 | L79: 2022 | M79: 2022 | N79: 2022 | O79: 합 계
B80: 월 | C80: 12 | D80: 1 | E80: 2 | F80: 3 | G80: 4 | H80: 5 | I80: 6 | J80: 7 | K80: 8 | L80: 9 | M80: 10 | N80: 11
B81: 정산금(천원) | C81: 739.076 | D81: 501.498 | E81: 331.887 | F81: 1009.205 | G81: 1468.769 | H81: 680.458 | I81: 47.032 | J81: 629.681 | K81: 944.506 | L81: 815.906 | M81: 286.183 | N81: 1964.841 | O81: =SUM(C81:N81) -> 9419.042
B83: 연 | C83: =C79+1 -> 2022 | D83: =D79+1 -> 2023 | E83: 2023 | F83: 2023 | G83: 2023 | H83: 2023 | I83: 2023 | J83: 2023 | K83: 2023 | L83: 2023 | M83: 2023 | N83: 2023 | O83: 합 계
B84: 월 | C84: 12 | D84: 1 | E84: 2 | F84: 3 | G84: 4 | H84: 5 | I84: 6 | J84: 7 | K84: 8 | L84: 9 | M84: 10 | N84: 11
B85: 정산금(천원) | C85: 1641.18 | D85: 5913.265 | E85: 6301.669 | F85: 11098.627 | G85: 4547.615 | H85: 1808.752 | I85: 532.165 | J85: 706.821 | K85: 3603.437 | O85: =SUM(C85:N85) -> 36153.531
B87: ㅇ 주파수DR 정산금
B88: 연 | C88: 2020 | D88: 2021 | E88: 2021 | F88: 2021 | G88: 2021 | H88: 2021 | I88: 2021 | J88: 2021 | K88: 2021 | L88: 2021 | M88: 2021 | N88: 2021 | O88: 합 계
B89: 월 | C89: 12 | D89: 1 | E89: 2 | F89: 3 | G89: 4 | H89: 5 | I89: 6 | J89: 7 | K89: 8 | L89: 9 | M89: 10 | N89: 11
B90: 정산금(백만원) | C90: 0 | D90: 0 | E90: 0 | F90: 2335.469692 | G90: 1202.669123 | H90: 2127.58645 | I90: 0 | J90: 0 | K90: 0 | L90: 0 | M90: 0 | N90: 0 | O90: =SUM(C90:N90) -> 5665.725265
B92: 연 | C92: =C88+1 -> 2021 | D92: 2022 | E92: 2022 | F92: 2022 | G92: 2022 | H92: 2022 | I92: 2022 | J92: 2022 | K92: 2022 | L92: 2022 | M92: 2022 | N92: 2022 | O92: 합 계
B93: 월 | C93: 12 | D93: 1 | E93: 2 | F93: 3 | G93: 4 | H93: 5 | I93: 6 | J93: 7 | K93: 8 | L93: 9 | M93: 10 | N93: 11
B94: 정산금(백만원) | C94: 0 | D94: 0 | E94: 0 | F94: 0 | G94: 3233.669585 | H94: 0 | I94: 0 | J94: 0 | K94: 0 | L94: 907.371566 | M94: 0 | N94: 0 | O94: =SUM(C94:N94) -> 4141.041151
B96: 연 | C96: =C92+1 -> 2022 | D96: =D92+1 -> 2023 | E96: 2023 | F96: 2023 | G96: 2023 | H96: 2023 | I96: 2023 | J96: 2023 | K96: 2023 | L96: 2023 | M96: 2023 | N96: 2023 | O96: 합 계
B97: 월 | C97: 12 | D97: 1 | E97: 2 | F97: 3 | G97: 4 | H97: 5 | I97: 6 | J97: 7 | K97: 8 | L97: 9 | M97: 10 | N97: 11
B98: 정산금(백만원) | C98: 0 | D98: 0 | E98: 0 | F98: 0 | G98: 0 | H98: 0 | I98: 0 | J98: 0 | K98: 0 | O98: =SUM(C98:N98) -> 0
B100: ㅇ 플러스DR 정산금
B101: 연 | C101: 2020 | D101: 2021 | E101: 2021 | F101: 2021 | G101: 2021 | H101: 2021 | I101: 2021 | J101: 2021 | K101: 2021 | L101: 2021 | M101: 2021 | N101: 2021 | O101: 합 계
B102: 월 | C102: 12 | D102: 1 | E102: 2 | F102: 3 | G102: 4 | H102: 5 | I102: 6 | J102: 7 | K102: 8 | L102: 9 | M102: 10 | N102: 11
B103: 정산금(천원) | G103: 206.872 | H103: 552.546 | I103: 0 | J103: 0 | K103: 0 | L103: 0 | M103: 42.046 | N103: 0 | O103: =SUM(C103:N103) -> 801.464
B105: 연 | C105: 2021 | D105: 2022 | E105: 2022 | F105: 2022 | G105: 2022 | H105: 2022 | I105: 2022 | J105: 2022 | K105: 2022 | L105: 2022 | M105: 2022 | N105: 2022 | O105: 합 계
B106: 월 | C106: 12 | D106: 1 | E106: 2 | F106: 3 | G106: 4 | H106: 5 | I106: 6 | J106: 7 | K106: 8 | L106: 9 | M106: 10 | N106: 11
B107: 정산금(천원) | C107: 0 | D107: 0 | E107: 0 | F107: 735.652 | G107: 4680.383 | H107: 5002.453 | I107: 0 | J107: 0 | K107: 0 | L107: 0 | M107: 8086.078 | N107: 5448.883 | O107: =SUM(C107:N107) -> 23953.449
B109: 연 | C109: =C105+1 -> 2022 | D109: 2023 | E109: 2023 | F109: 2023 | G109: 2023 | H109: 2023 | I109: 2023 | J109: 2023 | K109: 2023 | L109: 2023 | M109: 2023 | N109: 2023 | O109: 합 계
B110: 월 | C110: 12 | D110: 1 | E110: 2 | F110: 3 | G110: 4 | H110: 5 | I110: 6 | J110: 7 | K110: 8 | L110: 9 | M110: 10 | N110: 11
B111: 하루전시장 정산금(천원) | C111: 0 | D111: 1436.298 | E111: 5323.143 | F111: 4845.564 | G111: 7165.7 | H111: 3024.055 | I111: 0 | J111: 0 | K111: 0 | O111: =SUM(C111:N111) -> 21794.76
B112: 실시간시장 정산금(천원) | C112: 0 | D112: 1476.332 | E112: 8620.45 | F112: 23057.225 | G112: 10629.665 | H112: 8484.97 | I112: 1472.881 | J112: 0 | K112: 0 | O112: =SUM(C112:N112) -> 53741.523

Sheet 사업자별 참여제한 현황
B2: 사업자명 | C2: 80% 미만 횟수(회) | AC2: 전력거래제한 자원 수(개) | AD2: 입찰제한 자원 수(개)
C3: 신뢰성DR | P3: 자발적DR
C4: 합 계 | D4: '22.12월 | E4: '23.1월 | F4: '23.2월 | G4: '23.3월 | H4: '23.4월 | I4: '23.5월 | J4: '23.6월 | K4: '23.7월 | L4: '23.8월 | M4: '23.9월 | N4: '23.10월 | O4: '23.11월 | P4: 합 계 | Q4: '22.12월 | R4: '23.1월 | S4: '23.2월 | T4: '23.3월 | U4: '23.4월 | V4: '23.5월 | W4: '23.6월 | X4: '23.7월 | Y4: '23.8월 | Z4: '23.9월 | AA4: '23.10월 | AB4: '23.11월
B5: 그리드위즈(주) | C5: =SUM(D5:O5) -> 0 | D5: 0 | E5: 0 | F5: 0 | G5: 0 | H5: 0 | I5: 0 | J5: 0 | K5: 0 | L5: 0 | P5: =SUM(Q5:AB5) -> 2 | Q5: 0 | R5: 0 | S5: 0 | T5: 1 | U5: 0 | V5: 0 | W5: 1 | X5: 0 | Y5: 0 | AC5: 0 | AD5: 0
B6: 매니지온(주) | C6: =SUM(D6:O6) -> 0 | D6: 0 | E6: 0 | F6: 0 | G6: 0 | H6: 0 | I6: 0 | J6: 0 | K6: 0 | L6: 0 | P6: =SUM(Q6:AB6) -> 3 | Q6: 0 | R6: 1 | S6: 1 | T6: 1 | U6: 0 | V6: 0 | W6: 0 | X6: 0 | Y6: 0 | AC6: 0 | AD6: 1
B7: 미래앤환경(주) | C7: 2 | D7: 0 | E7: 0 | F7: 0 | G7: 0 | H7: 0 | I7: 0 | J7: 2 | K7: 0 | L7: 0 | P7: 0 | Q7: 0 | R7: 0 | S7: 0 | T7: 0 | U7: 0 | V7: 0 | W7: 0 | X7: 0 | Y7: 0 | AC7: 0 | AD7: 0
B8: 벽산파워(주) | C8: 2 | D8: 0 | E8: 0 | F8: 0 | G8: 0 | H8: 0 | I8: 0 | J8: 2 | K8: 0 | L8: 0 | P8: 1 | Q8: 1 | R8: 0 | S8: 0 | T8: 0 | U8: 0 | V8: 0 | W8: 0 | X8: 0 | Y8: 0 | AC8: 0 | AD8: 0
B9: 새서울산업(주) | C9: 0 | D9: 0 | E9: 0 | F9: 0 | G9: 0 | H9: 0 | I9: 0 | J9: 0 | K9: 0 | L9: 0 | P9: 1 | Q9: 1 | R9: 0 | S9: 0 | T9: 0 | U9: 0 | V9: 0 | W9: 0 | X9: 0 | Y9: 0 | AC9: 0 | AD9: 0
B10: 서울에너지공사 | C10: 0 | D10: 0 | E10: 0 | F10: 0 | G10: 0 | H10: 0 | I10: 0 | J10: 0 | K10: 0 | L10: 0 | P10: 0 | Q10: 0 | R10: 0 | S10: 0 | T10: 0 | U10: 0 | V10: 0 | W10: 0 | X10: 0 | Y10: 0 | AC10: 0 | AD10: 0
B11: 시너지(주) | C11: 0 | D11: 0 | E11: 0 | F11: 0 | G11: 0 | H11: 0 | I11: 0 | J11: 0 | K11: 0 | L11: 0 | P11: 1 | Q11: 0 | R11: 0 | S11: 0 | T11: 0 | U11: 0 | V11: 0 | W11: 0 | X11: 1 | Y11: 0 | AC11: 0 | AD11: 0
B12: 씨에스위더스(주) | C12: 2 | D12: 1 | E12: 0 | F12: 0 | G12: 0 | H12: 0 | I12: 0 | J12: 1 | K12: 0 | L12: 0 | P12: 5 | Q12: 1 | R12: 0 | S12: 0 | T12: 0 | U12: 1 | V12: 1 | W12: 0 | X12: 1 | Y12: 1 | AC12: 0 | AD12: 1
B13: 아이디알서비스(주) | C13: 0 | D13: 0 | E13: 0 | F13: 0 | G13: 0 | H13: 0 | I13: 0 | J13: 0 | K13: 0 | L13: 0 | P13: 2 | Q13: 0 | R13: 1 | S13: 0 | T13: 0 | U13: 0 | V13: 0 | W13: 1 | X13: 0 | Y13: 0 | AC13: 0 | AD13: 0
B14: 에너클(주) | C14: 2 | D14: 1 | E14: 0 | F14: 0 | G14: 0 | H14: 0 | I14: 0 | J14: 1 | K14: 0 | L14: 0 | P14: 2 | Q14: 1 | R14: 0 | S14: 0 | T14: 0 | U14: 0 | V14: 0 | W14: 1 | X14: 0 | Y14: 0 | AC14: 0 | AD14: 0
B15: 에넬엑스코리아 유한회사 | C15: 0 | D15: 0 | E15: 0 | F15: 0 | G15: 0 | H15: 0 | I15: 0 | J15: 0 | K15: 0 | L15: 0 | P15: 1 | Q15: 0 | R15: 0 | S15: 1 | T15: 0 | U15: 0 | V15: 0 | W15: 0 | X15: 0 | Y15: 0 | AC15: 0 | AD15: 0
B16: 에스케이텔레콤(주) | C16: 0 | D16: 0 | E16: 0 | F16: 0 | G16: 0 | H16: 0 | I16: 0 | J16: 0 | K16: 0 | L16: 0 | P16: 0 | Q16: 0 | R16: 0 | S16: 0 | T16: 0 | U16: 0 | V16: 0 | W16: 0 | X16: 0 | Y16: 0 | AC16: 0 | AD16: 0
B17: 엔라이튼(주) | C17: 0 | D17: 0 | E17: 0 | F17: 0 | G17: 0 | H17: 0 | I17: 0 | J17: 0 | K17: 0 | L17: 0 | P17: 1 | Q17: 1 | R17: 0 | S17: 0 | T17: 0 | U17: 0 | V17: 0 | W17: 0 | X17: 0 | Y17: 0 | AC17: 0 | AD17: 0
B18: 웰라인시스템(주) | C18: 1 | D18: 0 | E18: 0 | F18: 0 | G18: 0 | H18: 0 | I18: 0 | J18: 1 | K18: 0 | L18: 0 | P18: 0 | Q18: 0 | R18: 0 | S18: 0 | T18: 0 | U18: 0 | V18: 0 | W18: 0 | X18: 0 | Y18: 0 | AC18: 0 | AD18: 0
B19: 인업스(주) | C19: 1 | D19: 0 | E19: 0 | F19: 0 | G19: 0 | H19: 0 | I19: 0 | J19: 1 | K19: 0 | L19: 0 | P19: 4 | Q19: 0 | R19: 0 | S19: 0 | T19: 0 | U19: 1 | V19: 0 | W19: 1 | X19: 1 | Y19: 1 | AC19: 0 | AD19: 1
B20: 인코어드테크 놀로지스(주) | C20: 0 | D20: 0 | E20: 0 | F20: 0 | G20: 0 | H20: 0 | I20: 0 | J20: 0 | K20: 0 | L20: 0 | P20: 0 | Q20: 0 | R20: 0 | S20: 0 | T20: 0 | U20: 0 | V20: 0 | W20: 0 | X20: 0 | Y20: 0 | AC20: 0 | AD20: 0
B21: 케이티(주) | C21: 1 | D21: 0 | E21: 0 | F21: 0 | G21: 0 | H21: 0 | I21: 0 | J21: 1 | K21: 0 | L21: 0 | P21: 4 | Q21: 1 | R21: 1 | S21: 0 | T21: 0 | U21: 0 | V21: 1 | W21: 1 | X21: 0 | Y21: 0 | AC21: 0 | AD21: 1
B22: 코리아에너지(주) | C22: 2 | D22: 0 | E22: 0 | F22: 0 | G22: 0 | H22: 0 | I22: 0 | J22: 2 | K22: 0 | L22: 0 | P22: 0 | Q22: 0 | R22: 0 | S22: 0 | T22: 0 | U22: 0 | V22: 0 | W22: 0 | X22: 0 | Y22: 0 | AC22: 0 | AD22: 0
B23: 쿠루(주) | C23: 0 | D23: 0 | E23: 0 | F23: 0 | G23: 0 | H23: 0 | I23: 0 | J23: 0 | K23: 0 | L23: 0 | P23: 0 | Q23: 0 | R23: 0 | S23: 0 | T23: 0 | U23: 0 | V23: 0 | W23: 0 | X23: 0 | Y23: 0 | AC23: 0 | AD23: 0
B24: 파워텍에너지(주) | C24: 2 | D24: 0 | E24: 0 | F24: 0 | G24: 0 | H24: 0 | I24: 0 | J24: 2 | K24: 0 | L24: 0 | P24: 0 | Q24: 0 | R24: 0 | S24: 0 | T24: 0 | U24: 0 | V24: 0 | W24: 0 | X24: 0 | Y24: 0 | AC24: 0 | AD24: 0
B25: 포스코디엑스(주) | C25: 0 | D25: 0 | E25: 0 | F25: 0 | G25: 0 | H25: 0 | I25: 0 | J25: 0 | K25: 0 | L25: 0 | P25: 1 | Q25: 0 | R25: 0 | S25: 0 | T25: 0 | U25: 0 | V25: 0 | W25: 0 | X25: 1 | Y25: 0 | AC25: 0 | AD25: 0
B26: 한국엔텍(주) | C26: 1 | D26: 0 | E26: 0 | F26: 0 | G26: 0 | H26: 0 | I26: 0 | J26: 1 | K26: 0 | L26: 0 | P26: 0 | Q26: 0 | R26: 0 | S26: 0 | T26: 0 | U26: 0 | V26: 0 | W26: 0 | X26: 0 | Y26: 0 | AC26: 0 | AD26: 0
B27: 아이티맨(주) | C27: 0 | J27: 0 | K27: 0 | L27: 0 | P27: 0 | Q27: 0 | R27: 0 | S27: 0 | T27: 0 | U27: 0 | V27: 0 | W27: 0 | X27: 0 | Y27: 0 | AD27: 0
B28: 오이씨(주) | C28: 1 | J28: 1 | K28: 0 | L28: 0 | P28: 0 | Q28: 0 | R28: 0 | S28: 0 | T28: 0 | U28: 0 | V28: 0 | W28: 0 | X28: 0 | Y28: 0 | AD28: 0
B29: 파란에너지(주) | C29: 1 | J29: 1 | K29: 0 | L29: 0 | P29: 0 | Q29: 0 | R29: 0 | S29: 0 | T29: 0 | U29: 0 | V29: 0 | W29: 0 | X29: 0 | Y29: 0 | AD29: 0
B30: 한국전력정보(주) | C30: 1 | J30: 1 | K30: 0 | L30: 0 | P30: 0 | Q30: 0 | R30: 0 | S30: 0 | T30: 0 | U30: 0 | V30: 0 | W30: 0 | X30: 0 | Y30: 0 | AD30: 0
B31: 합 계 | C31: =SUM(C5:C26) -> 16 | D31: =SUM(D5:D26) -> 2 | E31: 0 | F31: 0 | G31: 0 | H31: 0 | I31: =SUM(I5:I26) -> 0 | J31: 14 | K31: 0 | L31: =SUM(L5:L26) -> 0 | P31: =SUM(P5:P26) -> 28 | Q31: =SUM(Q5:Q26) -> 6 | R31: 3 | S31: 2 | T31: 2 | U31: 2 | V31: 2 | W31: 5 | X31: 4 | Y31: 2 | AC31: =AM31 -> 0 | AD31: =SUM(AD5:AD30) -> 4
